fUST/lending_fUST_20260604
["ID","MTS","AMOUNT","RATE_DAILY","PERIOD"]
[423978761,1780527033000,-500.0,0.00024376,2]
[423978764,1780527033000,-500.0,0.00024376,2]
[423978760,1780527033000,-222.77338619,0.00024376,2]
[423978758,1780527033000,-150.19,0.00024277,7]
[423978762,1780527033000,-500.0,0.00024376,2]
[423978765,1780527033000,-500.0,0.00024376,2]
[423978767,1780527033000,-500.0,0.00024376,2]
[423978759,1780527033000,-150.19,0.00024327,7]
[423978766,1780527033000,-250.0,0.00024376,2]
[423978777,1780527033000,-15922.21747022,0.00024377,2]
[423978770,1780527033000,-500.0,0.00024376,2]
[423978774,1780527033000,-500.0,0.00024376,2]
[423978771,1780527033000,-500.0,0.00024376,2]
[423978769,1780527033000,-500.0,0.00024376,2]
[423978775,1780527033000,-150.19,0.00024377,7]
[423978768,1780527033000,-500.0,0.00024376,2]
[423978773,1780527033000,-500.0,0.00024376,2]
[423978776,1780527033000,-14585.87686561,0.00024377,2]
[423978772,1780527033000,-354.57227029,0.00024376,2]
[423978727,1780527033000,-1000.0,0.0002324,5]
[423978757,1780527033000,-150.19,0.00024227,7]
[423978755,1780527033000,-150.19,0.00024127,7]
[423978735,1780527033000,-300.38,0.00023396,30]
[423978737,1780527033000,-300.38,0.00023396,30]
[423978733,1780527033000,-150.19,0.00023377,7]
[423978738,1780527033000,-300.38,0.00023396,30]
[423978740,1780527033000,-150.19,0.00023427,7]
[423978734,1780527033000,-165.0,0.00023396,120]
[423978736,1780527033000,-300.38,0.00023396,30]
[423978742,1780527033000,-150.19,0.00023527,7]
[423978752,1780527033000,-150.19,0.00023977,7]
[423978753,1780527033000,-150.19,0.00024027,7]
[423978741,1780527033000,-150.19,0.00023477,7]
[423978748,1780527033000,-150.19,0.00023777,7]
[423978744,1780527033000,-150.19,0.00023627,7]
[423978746,1780527033000,-245.97,0.000237,2]
[423978751,1780527033000,-150.19,0.00023927,7]
[423978778,1780527033000,-311.82392788,0.00024377,2]
[423978749,1780527033000,-150.19,0.00023827,7]
[423978745,1780527033000,-150.19,0.00023677,7]
[423978747,1780527033000,-150.19,0.00023727,7]
[423978754,1780527033000,-150.19,0.00024077,7]
[423978743,1780527033000,-150.19,0.00023577,7]
[423978867,1780527038000,-166.09681851,0.00023698,30]
[423978869,1780527038000,-100842.35668675,0.00024377,2]
[423978865,1780527038000,-165.0,0.00022698,30]
[423979158,1780527046000,-400.0,0.000182,2]
[423979190,1780527084000,169.87909549,0.00023396,110]
[423979189,1780527084000,169.87909549,0.00023396,110]
[423979188,1780527084000,169.87909549,0.00023396,110]
[423979194,1780527132000,152.43,8.205e-05,2]
[423979193,1780527132000,152.43,8.205e-05,2]
[423979191,1780527132000,152.43,8.205e-05,2]
[423979195,1780527133000,152.43,8.205e-05,2]
[423979196,1780527176000,309.65,8.205e-05,2]
[423979199,1780527176000,309.65,8.205e-05,2]
[423979198,1780527176000,309.67,8.205e-05,2]
[423979197,1780527176000,309.65,8.205e-05,2]
[423979488,1780528233000,-448.77921669,0.00017916,2]
[423979486,1780528233000,-375.16014501,0.00017916,2]
[423979494,1780528233000,-162.47883793,0.00017916,2]
[423979498,1780528233000,-409.01241194,0.00017916,2]
[423979492,1780528233000,-202.13583484,0.00017916,2]
[423979503,1780528233000,-467.98463842,0.00018018,2]
[423979499,1780528233000,-158.23404616,0.00018018,2]
[423979495,1780528233000,-196.66580697,0.00017916,2]
[423979500,1780528233000,-357.11024801,0.00018018,2]
[423979501,1780528233000,-173.79975554,0.00018018,2]
[423979490,1780528233000,-191.01125943,0.00017916,2]
[423979505,1780528233000,-236.41558759,0.00018199,2]
[423979497,1780528233000,-398.31629762,0.00017916,2]
[423979484,1780528233000,-317.04002102,0.00017916,2]
[423979464,1780528233000,-151.0,0.00012134,2]
[423979480,1780528233000,-233.99231921,0.00017666,2]
[423979478,1780528233000,-471.38628289,0.00017666,2]
[423979462,1780528233000,-5000.0,0.00011538,2]
[423979459,1780528233000,-4103.484197,0.00011423,2]
[423979476,1780528233000,-187.5800725,0.00017565,2]
[423979466,1780528233000,-323.9838784,0.00013698,7]
[423979474,1780528233000,-317.68842834,0.00017565,2]
[423979471,1780528233000,-158.84421417,0.00017039,2]
[423979473,1780528233000,-152.43066183,0.00017565,7]
[423979472,1780528233000,-235.69314145,0.00017137,2]
[423979468,1780528233000,-163.0,0.00014274,3]
[423979457,1780528233000,-896.515803,0.00011423,2]
[423979470,1780528233000,-250.0,0.000154,2]
[423979504,1780528233000,-642.73434847,0.00018199,2]
[423979482,1780528233000,-339.1696461,0.00017916,2]
[423979507,1780528233000,-383.47441241,0.00018199,2]
[423979552,1780528233000,-151.5,0.00018399,2]
[423979511,1780528233000,-557.62,0.00018199,2]
[423979557,1780528233000,-500.0,0.00018399,2]
[423979559,1780528233000,-500.0,0.00018399,2]
[423979566,1780528233000,-312.42,0.00018473,2]
[423979556,1780528233000,-500.0,0.00018399,2]
[423979554,1780528233000,-500.0,0.00018399,2]
[423979561,1780528233000,-500.0,0.00018399,2]
[423979565,1780528233000,-500.0,0.00018473,2]
[423979550,1780528233000,-151.5,0.00018399,2]
[423979548,1780528233000,-500.0,0.00018399,2]
[423979546,1780528233000,-500.0,0.00018399,2]
[423979540,1780528233000,-500.0,0.00018399,2]
[423979542,1780528233000,-500.0,0.00018399,2]
[423979535,1780528233000,-500.0,0.00018399,2]
[423979537,1780528233000,-536.89178431,0.00018399,2]
[423979563,1780528233000,-2641.48943574,0.000184,2]
[423979539,1780528233000,-500.0,0.00018399,2]
[423979544,1780528233000,-500.0,0.00018399,2]
[423979502,1780528233000,-412.57036609,0.00018018,2]
[423979513,1780528233000,-500.0,0.00018199,2]
[423979515,1780528233000,-500.0,0.00018199,2]
[423979519,1780528233000,-553.41,0.00018199,2]
[423979521,1780528233000,-500.0,0.00018199,2]
[423979509,1780528233000,-500.0,0.00018199,2]
[423979523,1780528233000,-2241.48943574,0.000182,2]
[423979531,1780528233000,-500.58,0.00018398,2]
[423979529,1780528233000,-2833.15,0.00018398,2]
[423979527,1780528233000,-500.0,0.00018398,2]
[423979525,1780528233000,-208.33333333,0.000182,2]
[423979533,1780528233000,-500.0,0.00018398,2]
[423979517,1780528233000,-500.0,0.00018199,2]
[423979568,1780528234000,-500.0,0.00018473,2]
[423979570,1780528234000,-553.41,0.00018473,2]
[423979574,1780528234000,-258.68045727,0.0001849,2]
[423979576,1780528234000,-238.06776515,0.00018572,2]
[423979578,1780528234000,-191.83371482,0.00018572,2]
[423979572,1780528234000,-634.47,0.00018473,2]
[423979582,1780528234000,-45564.56565512,0.00018573,2]
[423979589,1780528234000,-353.61607577,0.00018573,2]
[423979584,1780528234000,-969.69,0.00018573,2]
[423979587,1780528234000,-629.66456354,0.00018573,2]
[423979580,1780528234000,-650.50803003,0.00018572,2]
[423979586,1780528234000,-797.3580568,0.00018573,2]
[423979667,1780528238000,-3046.48768569,0.00018387,2]
[423979668,1780528238000,-970.74485068,0.00018573,2]
[423979669,1780528239000,-1038.70338955,0.00018573,2]
[423979674,1780528239000,-1285.10008273,0.00018573,2]
[423979673,1780528239000,-3466.50906577,0.00018573,2]
[423979671,1780528239000,-6508.80197254,0.00018573,2]
[423979672,1780528239000,-6658.15151329,0.00018573,2]
[423979670,1780528239000,-639.34187099,0.00018573,2]
[423979685,1780528240000,-3487.59123659,0.00018573,2]
[423979684,1780528240000,-1639.21,0.00018563,3]
[423979712,1780528241000,-581.59161548,0.00018573,2]
[423979710,1780528241000,-26581.79889421,0.00018573,2]
[423979708,1780528241000,-500.0,0.00018399,2]
[423979714,1780528241000,-442.58507751,0.00018573,2]
[423979716,1780528241000,-363.632055,0.00018573,2]
[423979701,1780528241000,-1662.54163905,0.00018573,2]
[423979779,1780528246000,-500.0,0.00018399,2]
[423979781,1780528246000,-30523.5169904,0.00018573,2]
[423979780,1780528246000,-7849.48768569,0.00018573,2]
[423979782,1780528246000,-325799.99999999,0.00018573,2]
[423979784,1780528246000,-6455.00000001,0.00018573,2]
[423979785,1780528246000,-1424.03608078,0.00018573,2]
[423979783,1780528246000,-1257.029997,0.00018573,2]
[423979786,1780528247000,-20030.18977073,0.00018573,2]
[423979796,1780528290000,200.0,0.00023188,120]
[423979811,1780528637000,-1639.21,0.00014795,2]
[423979984,1780529432000,-500.0,0.00015999,2]
[423979982,1780529432000,-500.0,0.00015999,2]
[423979999,1780529432000,-500.0,0.00015999,2]
[423980005,1780529432000,-500.0,0.00015999,2]
[423979997,1780529432000,-500.0,0.00015999,2]
[423980002,1780529432000,-500.0,0.00015999,2]
[423980016,1780529432000,-500.0,0.00015999,2]
[423979994,1780529432000,-500.0,0.00015999,2]
[423980008,1780529432000,-500.0,0.00015999,2]
[423979991,1780529432000,-500.0,0.00015999,2]
[423979986,1780529432000,-500.0,0.00015999,2]
[423980011,1780529432000,-500.0,0.00015999,2]
[423980013,1780529432000,-500.0,0.00015999,2]
[423979980,1780529432000,-500.0,0.00015999,2]
[423979988,1780529432000,-500.0,0.00015999,2]
[423979979,1780529432000,-380.769463,0.00015999,2]
[423979962,1780529432000,-674.172,0.00015999,2]
[423979974,1780529432000,-500.0,0.00015999,2]
[423980018,1780529432000,-9365.60326912,0.00016,7]
[423979949,1780529432000,-5000.0,0.00015583,2]
[423979952,1780529432000,-460.0,0.00015998,2]
[423979951,1780529432000,-507.3,0.00015998,2]
[423979959,1780529432000,-500.0,0.00015998,2]
[423979956,1780529432000,-2715.1,0.00015998,2]
[423979977,1780529432000,-500.0,0.00015999,2]
[423979954,1780529432000,-500.0,0.00015998,2]
[423979961,1780529432000,-500.0,0.00015998,2]
[423979964,1780529432000,-500.0,0.00015999,2]
[423979966,1780529432000,-500.0,0.00015999,2]
[423979968,1780529432000,-500.0,0.00015999,2]
[423979970,1780529432000,-500.0,0.00015999,2]
[423979971,1780529432000,-500.0,0.00015999,2]
[423979957,1780529432000,-500.0,0.00015998,2]
[423980020,1780529432000,-49792.61055152,0.00016,7]
[423980014,1780529432000,-500.0,0.00015999,2]
[423980035,1780529432000,-500.0,0.00016272,2]
[423980060,1780529432000,-500.0,0.0001682,2]
[423980058,1780529432000,-323.95890214,0.0001682,2]
[423980055,1780529432000,-2715.1,0.0001682,2]
[423980057,1780529432000,-176.04109786,0.0001682,2]
[423980066,1780529432000,-500.0,0.00017094,2]
[423980068,1780529432000,-259.1948532,0.00017094,2]
[423980074,1780529432000,-475.6635203,0.00017368,2]
[423980077,1780529432000,-2715.1,0.00017368,2]
[423980081,1780529432000,-500.0,0.00017368,2]
[423980072,1780529432000,-159.57140141,0.00017222,2]
[423980079,1780529432000,-230.7,0.00017368,2]
[423980085,1780529432000,-2344.78230455,0.00017642,2]
[423980076,1780529432000,-31.6364797,0.00017368,2]
[423980083,1780529432000,-507.3,0.00017642,2]
[423980022,1780529432000,-4296.67818282,0.00016,7]
[423980053,1780529432000,-507.3,0.0001682,2]
[423980064,1780529432000,-2715.1,0.00017094,2]
[423980070,1780529432000,-240.8051468,0.00017094,2]
[423980051,1780529432000,-1171.50222367,0.00016604,2]
[423980087,1780529432000,-370.31769545,0.00017642,2]
[423980024,1780529432000,-648.1942693,0.00016,7]
[423980030,1780529432000,-507.3,0.00016272,2]
[423980032,1780529432000,-2715.1,0.00016272,2]
[423980026,1780529432000,-18706.97550302,0.00016,7]
[423980028,1780529432000,-159.57140142,0.00016172,2]
[423980033,1780529432000,-500.0,0.00016272,2]
[423980037,1780529432000,-500.0,0.00016272,2]
[423980040,1780529432000,-507.3,0.00016546,2]
[423980042,1780529432000,-2715.1,0.00016546,2]
[423980049,1780529432000,-8093.77856163,0.00016604,2]
[423980046,1780529432000,-500.0,0.00016546,2]
[423980048,1780529432000,-500.0,0.00016546,2]
[423980044,1780529432000,-500.0,0.00016546,2]
[423980039,1780529432000,-600.0,0.00016318,2]
[423980062,1780529432000,-507.3,0.00017094,2]
[423980089,1780529433000,-500.0,0.00017642,2]
[423980091,1780529433000,-507.3,0.00017916,2]
[423980098,1780529433000,-264.30497221,0.0001795,2]
[423980096,1780529433000,-500.0,0.00017916,2]
[423980094,1780529433000,-1744.74523469,0.00017916,2]
[423980092,1780529433000,-970.35476531,0.00017916,2]
[423980293,1780529441000,-77.35096,0.00015999,2]
[423980298,1780529441000,-367.13167287,0.00015999,2]
[423980341,1780529442000,-500.0,0.00016547,2]
[423980343,1780529442000,-500.0,0.00016821,2]
[423980339,1780529442000,-500.0,0.00016273,2]
[423980337,1780529442000,-55.51736713,0.00015999,2]
[423980377,1780529443000,-531.5944052,0.00018199,2]
[423980383,1780529443000,-500.0,0.00018199,2]
[423980381,1780529443000,-500.0,0.00018199,2]
[423980379,1780529443000,-500.0,0.00018199,2]
[423980375,1780529443000,-9925.11756773,0.00018199,2]
[423980372,1780529443000,-500.0,0.00018191,2]
[423980367,1780529443000,-500.0,0.0001819,2]
[423980363,1780529443000,-819.6,0.0001819,3]
[423980359,1780529443000,-158.84421417,0.0001802,2]
[423980361,1780529443000,-409.8,0.00018189,3]
[423980357,1780529443000,-235.69314145,0.0001802,2]
[423980355,1780529443000,-455.69502779,0.0001795,2]
[423980352,1780529443000,-500.0,0.00017917,2]
[423980348,1780529443000,-500.0,0.00017369,2]
[423980346,1780529443000,-500.0,0.00017095,2]
[423980350,1780529443000,-500.0,0.00017643,2]
[423980385,1780529443000,-500.0,0.00018199,2]
[423980365,1780529443000,-2715.1,0.0001819,2]
[423980387,1780529443000,-500.0,0.00018199,2]
[423980408,1780529443000,-160.0,0.00018229,2]
[423980390,1780529443000,-438.99761052,0.00018199,2]
[423980422,1780529443000,-93598.30686427,0.00018372,2]
[423980417,1780529443000,-1639.21,0.00018362,3]
[423980419,1780529443000,-380.85344026,0.00018371,2]
[423980415,1780529443000,-614.73,0.00018318,3]
[423980425,1780529443000,-2747.83798997,0.00018372,2]
[423980413,1780529443000,-204.9,0.00018318,3]
[423980410,1780529443000,-160.0,0.00018229,2]
[423980412,1780529443000,-159.57140141,0.00018272,2]
[423980421,1780529443000,-200.0,0.00018371,2]
[423980406,1780529443000,-160.0,0.00018229,2]
[423980400,1780529443000,-500.0,0.00018199,2]
[423980402,1780529443000,-500.0,0.00018199,2]
[423980398,1780529443000,-617.42,0.00018199,2]
[423980394,1780529443000,-500.0,0.00018199,2]
[423980396,1780529443000,-500.0,0.00018199,2]
[423980392,1780529443000,-500.0,0.00018199,2]
[423980404,1780529443000,-2113.19154859,0.000182,2]
[423980388,1780529443000,-500.0,0.00018199,2]
[423980489,1780529444000,-14759.99999999,0.00018372,2]
[423980488,1780529444000,-644.0,0.00018372,2]
[423980503,1780529446000,-2222.232,0.00018372,2]
[423980516,1780529548000,-1007.0018625,0.00015838,2]
[423980568,1780530408000,-3487.59349305,0.00013771,2]
[423980667,1780530632000,-256.12,0.0001559,3]
[423980683,1780530632000,-500.0,0.00015599,2]
[423980680,1780530632000,-500.0,0.00015599,2]
[423980679,1780530632000,-500.0,0.00015599,2]
[423980677,1780530632000,-247.81990698,0.00015599,2]
[423980678,1780530632000,-200.0,0.00015599,2]
[423980681,1780530632000,-500.0,0.00015599,2]
[423980673,1780530632000,-500.0,0.00015599,2]
[423980672,1780530632000,-266.59740818,0.00015599,2]
[423980676,1780530632000,-500.0,0.00015599,2]
[423980674,1780530632000,-500.0,0.00015599,2]
[423980670,1780530632000,-500.0,0.00015599,2]
[423980664,1780530632000,-539.338,0.00015386,2]
[423980661,1780530632000,-1007.0018625,0.00013633,2]
[423980663,1780530632000,-262.0634815,0.00014544,2]
[423980682,1780530632000,-500.0,0.00015599,2]
[423980669,1780530632000,-768.41,0.0001559,3]
[423980666,1780530632000,-2700.77308927,0.000155,2]
[423980675,1780530632000,-500.0,0.00015599,2]
[423980685,1780530632000,-500.0,0.00015599,2]
[423980659,1780530632000,-5000.0,0.00013497,2]
[423980690,1780530632000,-500.0,0.00015599,2]
[423980699,1780530632000,-500.0,0.00015599,2]
[423980701,1780530632000,-500.0,0.00015599,2]
[423980705,1780530632000,-332472.31130784,0.000156,2]
[423980700,1780530632000,-500.0,0.00015599,2]
[423980697,1780530632000,-500.0,0.00015599,2]
[423980702,1780530632000,-579.6210765,0.00015599,2]
[423980704,1780530632000,-500.0,0.00015599,2]
[423980698,1780530632000,-500.0,0.00015599,2]
[423980706,1780530632000,-1007.0018625,0.000156,2]
[423980703,1780530632000,-500.0,0.00015599,2]
[423980695,1780530632000,-500.0,0.00015599,2]
[423980696,1780530632000,-500.0,0.00015599,2]
[423980684,1780530632000,-500.0,0.00015599,2]
[423980692,1780530632000,-500.0,0.00015599,2]
[423980688,1780530632000,-500.0,0.00015599,2]
[423980691,1780530632000,-500.0,0.00015599,2]
[423980693,1780530632000,-500.0,0.00015599,2]
[423980689,1780530632000,-500.0,0.00015599,2]
[423980686,1780530632000,-500.0,0.00015599,2]
[423980687,1780530632000,-500.0,0.00015599,2]
[423980694,1780530632000,-282.40405495,0.00015599,2]
[423980707,1780530633000,-395.20016942,0.000156,2]
[423980892,1780530643000,-553.9603979,0.00015599,2]
[423980891,1780530643000,-500.0,0.00015599,2]
[423980894,1780530643000,-2818.16086675,0.000156,2]
[423980893,1780530643000,-367.53346885,0.000156,2]
[423980895,1780530643000,-87.43264,0.000156,2]
[423980890,1780530643000,-500.0,0.00015599,2]
[423980903,1780530643000,-19748.29585799,0.000156,2]
[423980901,1780530643000,-101790.21773394,0.000156,2]
[423980902,1780530643000,-1947.02828019,0.000156,2]
[423980905,1780530643000,-1119628.23613179,0.000156,2]
[423980906,1780530643000,-12913.79060295,0.000156,2]
[423980889,1780530643000,-5000.0,0.00015443,2]
[423980896,1780530643000,-42534.1937797,0.000156,2]
[423980904,1780530643000,-458454.96105049,0.000156,2]
[423980917,1780530644000,-500.0,0.00015599,2]
[423980918,1780530644000,-379.79512131,0.000156,2]
[423980937,1780530647000,-6434.99999999,0.000156,2]
[423980940,1780530647000,-447.99999999,0.000156,2]
[423980936,1780530647000,-21122.47285883,0.000156,2]
[423980951,1780530752000,154.0,0.0002,120]
[423980952,1780530753000,154.0,0.000216,120]
[423980990,1780531348000,-151.0,0.00013972,2]
[423980991,1780531364000,-834.12220163,0.00014404,2]
[423980992,1780531382000,-151.0,0.00014404,2]
[423980995,1780531398000,-834.12220163,0.00014404,2]
[423981183,1780531831000,-4488.7395016,0.00013919,2]
[423981182,1780531831000,-511.2604984,0.00013919,2]
[423981186,1780531831000,-399.63874978,0.00015092,2]
[423981185,1780531831000,-389.116101,0.00014549,2]
[423981184,1780531831000,-165.22776041,0.0001406,2]
[423981268,1780531842000,-533.61,0.0001539,3]
[423981289,1780531842000,-518.19402241,0.00015398,2]
[423981278,1780531842000,-500.0,0.00015398,2]
[423981276,1780531842000,-500.0,0.00015398,2]
[423981274,1780531842000,-500.0,0.00015398,2]
[423981272,1780531842000,-500.0,0.00015398,2]
[423981270,1780531842000,-500.0,0.00015398,2]
[423981264,1780531842000,-213.44,0.0001539,3]
[423981266,1780531842000,-177.87,0.0001539,3]
[423981260,1780531842000,-853.74,0.0001539,3]
[423981258,1780531842000,-6699.06904896,0.000153,2]
[423981262,1780531842000,-426.87,0.0001539,3]
[423981250,1780531842000,-804.06906712,0.00015289,2]
[423981254,1780531842000,-2231.29166127,0.00015289,2]
[423981248,1780531842000,-446.70503729,0.00015289,2]
[423981256,1780531842000,-2363.17645312,0.00015299,2]
[423981291,1780531842000,-500.0,0.00015398,2]
[423981246,1780531842000,-1200.0,0.00015288,2]
[423981242,1780531842000,-4640.45439802,0.00014941,2]
[423981244,1780531842000,-31.83125022,0.00015092,2]
[423981240,1780531842000,-359.54560198,0.00014941,2]
[423981252,1780531842000,-1429.45611933,0.00015289,2]
[423981287,1780531842000,-500.0,0.00015398,2]
[423981294,1780531842000,-500.0,0.00015398,2]
[423981283,1780531842000,-500.0,0.00015398,2]
[423981281,1780531842000,-500.0,0.00015398,2]
[423981337,1780531842000,-422.93917816,0.00015399,2]
[423981335,1780531842000,-500.0,0.00015399,2]
[423981333,1780531842000,-500.0,0.00015399,2]
[423981329,1780531842000,-500.0,0.00015399,2]
[423981328,1780531842000,-500.0,0.00015399,2]
[423981326,1780531842000,-500.0,0.00015399,2]
[423981311,1780531842000,-500.0,0.00015399,2]
[423981309,1780531842000,-290.16256385,0.00015399,2]
[423981313,1780531842000,-500.0,0.00015399,2]
[423981324,1780531842000,-573.47393489,0.00015399,2]
[423981331,1780531842000,-500.0,0.00015399,2]
[423981308,1780531842000,-500.0,0.00015399,2]
[423981284,1780531842000,-500.0,0.00015398,2]
[423981306,1780531842000,-298.20313909,0.00015398,2]
[423981302,1780531842000,-500.0,0.00015398,2]
[423981297,1780531842000,-509.57706424,0.00015398,2]
[423981300,1780531842000,-500.0,0.00015398,2]
[423981315,1780531842000,-477.4980207,0.00015399,2]
[423981317,1780531842000,-22.5019793,0.00015399,2]
[423981320,1780531842000,-378.24040549,0.00015399,2]
[423981322,1780531842000,-500.0,0.00015399,2]
[423981304,1780531842000,-500.0,0.00015398,2]
[423981374,1780531843000,-500.0,0.00015399,2]
[423981360,1780531843000,-500.0,0.00015399,2]
[423981368,1780531843000,-500.0,0.00015399,2]
[423981366,1780531843000,-500.0,0.00015399,2]
[423981364,1780531843000,-500.0,0.00015399,2]
[423981362,1780531843000,-500.0,0.00015399,2]
[423981358,1780531843000,-500.0,0.00015399,2]
[423981356,1780531843000,-500.0,0.00015399,2]
[423981350,1780531843000,-500.0,0.00015399,2]
[423981352,1780531843000,-500.0,0.00015399,2]
[423981348,1780531843000,-500.0,0.00015399,2]
[423981343,1780531843000,-500.0,0.00015399,2]
[423981345,1780531843000,-500.0,0.00015399,2]
[423981347,1780531843000,-500.0,0.00015399,2]
[423981339,1780531843000,-77.06082184,0.00015399,2]
[423981341,1780531843000,-500.0,0.00015399,2]
[423981370,1780531843000,-500.0,0.00015399,2]
[423981354,1780531843000,-500.0,0.00015399,2]
[423981372,1780531843000,-500.0,0.00015399,2]
[423981392,1780531843000,-592.82172734,0.00015399,2]
[423981376,1780531843000,-500.0,0.00015399,2]
[423981405,1780531843000,-50734.33525969,0.000154,2]
[423981404,1780531843000,-1718.68141975,0.000154,2]
[423981402,1780531843000,-7285.50019759,0.000154,2]
[423981401,1780531843000,-2433.1418704,0.000154,2]
[423981378,1780531843000,-500.0,0.00015399,2]
[423981399,1780531843000,-8062.67349115,0.000154,2]
[423981384,1780531843000,-500.0,0.00015399,2]
[423981386,1780531843000,-500.0,0.00015399,2]
[423981398,1780531843000,-903.1324255,0.000154,2]
[423981390,1780531843000,-500.0,0.00015399,2]
[423981382,1780531843000,-310.35122011,0.00015399,2]
[423981393,1780531843000,-2311.4,0.00015399,2]
[423981380,1780531843000,-363.37847473,0.00015399,2]
[423981394,1780531843000,-500.0,0.00015399,2]
[423981396,1780531843000,-4532.68453681,0.000154,2]
[423981395,1780531843000,-200.61952458,0.00015399,2]
[423981391,1780531843000,-244.85,0.00015399,2]
[423981388,1780531843000,-500.0,0.00015399,2]
[423981415,1780531846000,-776.39520267,0.000154,2]
[423981516,1780532628000,-1570.65410675,0.00013289,2]
[423981698,1780533032000,-500.0,0.0001344,2]
[423981683,1780533032000,-327.0,0.00012765,2]
[423981691,1780533032000,-1036.69568593,0.00012765,2]
[423981696,1780533032000,-395.26962239,0.00012894,2]
[423981700,1780533032000,-500.0,0.0001344,2]
[423981702,1780533032000,-790.436,0.0001344,2]
[423981694,1780533032000,-3636.30431407,0.00012765,2]
[423981706,1780533032000,-1129.78646554,0.00013713,2]
[423981709,1780533032000,-50.21353446,0.00013713,2]
[423981711,1780533032000,-460.99863137,0.0001383,7]
[423981714,1780533032000,-11529.11884672,0.000149,2]
[423981712,1780533032000,-297.55996368,0.0001383,7]
[423981713,1780533032000,-15357.82067832,0.000149,2]
[423981704,1780533032000,-758.55859505,0.00013559,2]
[423981744,1780533038000,-601.43175442,0.00014899,2]
[423981746,1780533038000,-142484.33344654,0.000149,2]
[423981740,1780533038000,-217.24585408,0.00014899,2]
[423981742,1780533038000,-500.0,0.00014899,2]
[423981753,1780533038000,-31954.42952058,0.000149,2]
[423981752,1780533038000,-4991.96987597,0.000149,2]
[423981754,1780533038000,-10209.98579081,0.000149,2]
[423981748,1780533038000,-836.73170697,0.000149,2]
[423981801,1780533040000,-1776.13358044,0.000149,2]
[423981803,1780533040000,-4727.4122376,0.000149,2]
[423981805,1780533040000,-369.61000001,0.000149,2]
[423981774,1780533040000,-6504.76615134,0.000149,2]
[423981772,1780533040000,-252.85286501,0.00013389,2]
[423981827,1780533043000,-252.85286501,0.00014058,14]
[423981828,1780533043000,-208.69337839,0.00014899,2]
[423981826,1780533043000,-252.85286501,0.00013657,7]
[423981829,1780533043000,-500.0,0.00014899,2]
[423981830,1780533043000,-500.0,0.00014899,2]
[423981831,1780533043000,-429.26427497,0.00014899,2]
[423981832,1780533043000,-93.2150444,0.000149,2]
[423981853,1780533046000,-6355.00000001,0.000149,2]
[423981856,1780533046000,-106516.39818714,0.000149,2]
[423981855,1780533046000,-720.8001,0.000149,2]
[423981854,1780533046000,-10830.25083971,0.000149,2]
[423982183,1780534232000,-200.18854949,0.00012328,2]
[423982184,1780534232000,-500.0,0.00012328,2]
[423982181,1780534232000,-4696.57986667,0.00012228,2]
[423982178,1780534232000,-300.0,0.00011503,2]
[423982172,1780534232000,-300.0,0.00011503,2]
[423982167,1780534232000,-300.0,0.00011503,2]
[423982164,1780534232000,-300.0,0.00011503,2]
[423982173,1780534232000,-300.0,0.00011503,2]
[423982169,1780534232000,-300.0,0.00011503,2]
[423982170,1780534232000,-300.0,0.00011503,2]
[423982176,1780534232000,-300.0,0.00011503,2]
[423982165,1780534232000,-300.0,0.00011503,2]
[423982161,1780534232000,-300.0,0.00011503,2]